fUST/lending_fUST_20251115
["ID","MTS","AMOUNT","RATE_DAILY","PERIOD"]
[394024814,1763200274483,-500.0,0.00049589,120]
[394024815,1763200274493,-500.0,0.00049589,120]
[394024816,1763200274502,-500.0,0.00049589,120]
[394024817,1763200274512,-937.06,0.00049589,120]
[394024818,1763200274521,-500.0,0.00049589,120]
[394024819,1763200274531,-518.0848467,0.00049589,120]
[394024820,1763200274540,-500.0,0.00049589,120]
[394024821,1763200274549,-571.26,0.00049589,120]
[394024822,1763200274559,-523.49,0.00049589,120]
[394024823,1763200274569,-500.0,0.00049589,120]
[394024824,1763200274578,-500.0,0.00049589,120]
[394024825,1763200274588,-840.74,0.00049589,120]
[394024826,1763200274598,-500.0,0.00049589,120]
[394024827,1763200274607,-560.85074869,0.00049589,120]
[394024828,1763200274616,-500.0,0.00049589,120]
[394024829,1763200274626,-500.0,0.00049589,120]
[394024830,1763200274635,-839.73,0.00049589,120]
[394024831,1763200274644,-500.0,0.00049589,120]
[394024832,1763200274654,-548.3,0.00049589,120]
[394024833,1763200274663,-500.0,0.00049589,120]
[394024834,1763200274673,-500.0,0.00049589,120]
[394024835,1763200274682,-500.0,0.00049589,120]
[394024836,1763200274691,-533.64,0.00049589,120]
[394024837,1763200274700,-500.0,0.00049589,120]
[394024838,1763200274710,-500.0,0.00049589,120]
[394024839,1763200274720,-500.0,0.00049589,120]
[394024840,1763200274729,-1390.62,0.00049589,120]
[394024841,1763200274739,-500.0,0.00049589,120]
[394024842,1763200274748,-1276.71,0.00049589,120]
[394024843,1763200274757,-572.61,0.00049589,120]
[394024844,1763200274767,-500.0,0.00049589,120]
[394024845,1763200274776,-500.0,0.00049589,120]
[394024846,1763200274786,-558.34621356,0.00049589,120]
[394024847,1763200274795,-945.13,0.00049589,120]
[394024848,1763200274805,-1188.94,0.00049589,120]
[394024849,1763200274816,-502.25944205,0.00049589,120]
[394024850,1763200274826,-500.0,0.00049589,120]
[394024851,1763200274836,-1077.77,0.00049589,120]
[394024852,1763200274846,-500.0,0.00049589,120]
[394024853,1763200274857,-500.0,0.00049589,120]
[394024854,1763200274869,-500.0,0.00049589,120]
[394024855,1763200274882,-500.0,0.00049589,120]
[394024856,1763200274892,-1791.91,0.00049589,120]
[394024857,1763200274901,-500.0,0.00049589,120]
[394024858,1763200274912,-500.0,0.00049589,120]
[394024859,1763200274923,-500.0,0.00049589,120]
[394024860,1763200274934,-500.0,0.00049589,120]
[394024861,1763200274945,-500.0,0.00049589,120]
[394024862,1763200274954,-500.0,0.00049589,120]
[394024863,1763200274964,-500.0,0.00049589,120]
[394024864,1763200274973,-500.0,0.00049589,120]
[394024865,1763200274982,-1017.14,0.00049589,120]
[394024866,1763200274993,-500.0,0.00049589,120]
[394024867,1763200275002,-500.0,0.00049589,120]
[394024868,1763200275011,-500.0,0.00049589,120]
[394024869,1763200275021,-505.80071817,0.00049589,120]
[394024870,1763200275030,-500.0,0.00049589,120]
[394024871,1763200275039,-500.0,0.00049589,120]
[394024872,1763200275051,-936.67,0.00049589,120]
[394024873,1763200275062,-500.0,0.00049589,120]
[394024874,1763200275073,-500.0,0.00049589,120]
[394024875,1763200275082,-500.0,0.00049589,120]
[394024876,1763200275091,-649.89,0.00049589,120]
[394024877,1763200275100,-1776.75,0.00049589,120]
[394024878,1763200275110,-500.0,0.00049589,120]
[394024879,1763200275120,-500.0,0.00049589,120]
[394024880,1763200275130,-500.0,0.00049589,120]
[394024881,1763200275140,-500.0,0.00049589,120]
[394024882,1763200275150,-500.0,0.00049589,120]
[394024883,1763200275160,-500.0,0.00049589,120]
[394024884,1763200275171,-500.0,0.00049589,120]
[394024885,1763200275181,-500.0,0.00049589,120]
[394024886,1763200275191,-500.0,0.00049589,60]
[394024887,1763200275205,-500.0,0.00049589,3]
[394024888,1763200275215,-500.0,0.00049589,120]
[394024889,1763200275224,-500.0,0.00049589,120]
[394024890,1763200275234,-501.0353115,0.00049589,120]
[394024891,1763200275245,-532.97,0.00049589,120]
[394024892,1763200275254,-777.09,0.00049589,120]
[394024893,1763200275264,-500.0,0.00049589,120]
[394024894,1763200275274,-500.0,0.00049589,120]
[394024895,1763200275284,-500.0,0.00049589,120]
[394024896,1763200275293,-564.66095369,0.00049589,30]
[394024897,1763200275303,-500.0,0.00049589,120]
[394024898,1763200275312,-500.0,0.00049589,120]
[394024899,1763200275322,-1276.7,0.00049589,7]
[394024900,1763200275332,-927.9,0.00049589,120]
[394024901,1763200275342,-500.0,0.00049589,120]
[394024902,1763200275352,-500.0,0.00049589,120]
[394024903,1763200275362,-979.1,0.00049589,120]
[394024904,1763200275371,-769.66,0.00049589,120]
[394024905,1763200275381,-500.0,0.00049589,120]
[394024906,1763200275392,-500.0,0.00049589,120]
[394024907,1763200275404,-500.0,0.00049589,120]
[394024908,1763200275414,-500.0,0.00049589,120]
[394024909,1763200275424,-500.0,0.00049589,120]
[394024910,1763200275434,-609.02,0.00049589,120]
[394024911,1763200275443,-500.0,0.00049589,10]
[394024912,1763200275453,-500.0,0.00049589,120]
[394024913,1763200275465,-500.0,0.00049589,120]
[394024914,1763200275475,-500.0,0.00049589,120]
[394024915,1763200275485,-624.67,0.00049589,120]
[394024916,1763200275496,-500.0,0.00049589,120]
[394024917,1763200275505,-500.0,0.00049589,120]
[394024918,1763200275515,-500.0,0.00049589,120]
[394024919,1763200275524,-500.0,0.00049589,120]
[394024920,1763200275534,-500.0,0.00049589,120]
[394024921,1763200275543,-500.0,0.00049589,120]
[394024922,1763200275552,-500.0,0.00049589,120]
[394024923,1763200275563,-500.0,0.00049589,120]
[394024924,1763200275572,-500.0,0.00049589,120]
[394024925,1763200275581,-745.41,0.00049589,120]
[394024926,1763200275591,-500.0,0.00049589,120]
[394024927,1763200275600,-500.0,0.00049589,120]
[394024928,1763200275610,-500.0,0.00049589,120]
[394024929,1763200275619,-500.0,0.00049589,120]
[394024930,1763200275629,-500.0,0.00049589,120]
[394024931,1763200275638,-4568.1,0.00049589,3]
[394024932,1763200275648,-500.0,0.00049589,120]
[394024933,1763200275657,-500.0,0.00049589,120]
[394024934,1763200275667,-500.0,0.00049589,120]
[394024935,1763200275676,-1131.39,0.00049589,120]
[394024936,1763200275686,-500.0,0.00049589,120]
[394024937,1763200275695,-500.0,0.00049589,120]
[394024938,1763200275704,-500.0,0.00049589,120]
[394024939,1763200275713,-500.0,0.00049589,120]
[394024940,1763200275722,-500.0,0.00049589,120]
[394024941,1763200275731,-500.0,0.00049589,120]
[394024942,1763200275742,-500.0,0.00049589,120]
[394024943,1763200275752,-520.96190734,0.00049589,120]
[394024944,1763200275762,-797.3,0.00049589,120]
[394024945,1763200275771,-500.0,0.00049589,120]
[394024946,1763200275780,-500.0,0.00049589,120]
[394024947,1763200275790,-500.0,0.00049589,120]
[394024948,1763200275799,-849.34,0.00049589,120]
[394024949,1763200275809,-558.47859712,0.00049589,120]
[394024950,1763200275819,-503.56558241,0.00049589,120]
[394024951,1763200275828,-500.0,0.00049589,120]
[394024952,1763200275837,-500.0,0.00049589,120]
[394024953,1763200275847,-500.0,0.00049589,120]
[394024954,1763200275857,-500.0,0.00049589,120]
[394024955,1763200275866,-500.0,0.00049589,120]
[394024956,1763200275875,-500.0,0.00049589,120]
[394024957,1763200275884,-577.74,0.00049589,120]
[394024958,1763200275894,-500.0,0.00049589,120]
[394024959,1763200275903,-501.33210094,0.00049589,120]
[394024960,1763200275912,-502.07071457,0.00049589,120]
[394024961,1763200275922,-647.88,0.00049589,120]
[394024962,1763200275931,-500.0,0.00049589,30]
[394024963,1763200275940,-500.0,0.00049589,120]
[394024964,1763200275950,-566.74,0.00049589,120]
[394024965,1763200275959,-636.73,0.00049589,120]
[394024966,1763200275968,-500.0,0.00049589,30]
[394024967,1763200275977,-500.0,0.00049589,120]
[394024968,1763200275987,-500.0,0.00049589,120]
[394024969,1763200275996,-500.0,0.00049589,120]
[394024970,1763200276006,-500.0,0.00049589,120]
[394024971,1763200276015,-500.0,0.00049589,120]
[394024972,1763200276024,-500.0,0.00049589,120]
[394024973,1763200276034,-500.0,0.00049589,120]
[394024974,1763200276043,-1133.68,0.00049589,120]
[394024975,1763200276052,-500.0,0.00049589,120]
[394024976,1763200276061,-500.0,0.00049589,120]
[394024977,1763200276070,-500.0,0.00049589,120]
[394024978,1763200276080,-1012.59,0.00049589,120]
[394024979,1763200276090,-800.22,0.00049589,120]
[394024980,1763200276099,-500.0,0.00049589,120]
[394024981,1763200276108,-500.0,0.00049589,120]
[394024982,1763200276117,-1236.1,0.00049589,120]
[394024983,1763200276127,-506.07510543,0.00049589,120]
[394024984,1763200276136,-500.0,0.00049589,120]
[394024985,1763200276146,-815.37,0.00049589,120]
[394024986,1763200276155,-500.0,0.00049589,120]
[394024987,1763200276165,-500.0,0.00049589,120]
[394024988,1763200276174,-500.0,0.00049589,120]
[394024989,1763200276183,-500.0,0.00049589,120]
[394024990,1763200276195,-500.0,0.00049589,120]
[394024991,1763200276368,-500.0,0.00049589,120]
[394024992,1763200276378,-500.0,0.00049589,120]
[394024993,1763200276387,-500.0,0.00049589,120]
[394024994,1763200276395,-500.0,0.00049589,120]
[394024995,1763200276405,-500.0,0.00049589,120]
[394024996,1763200276414,-500.0,0.00049589,120]
[394024997,1763200276423,-500.0,0.00049589,120]
[394024998,1763200276433,-1270.32,0.00049589,120]
[394024999,1763200276442,-617.48,0.00049589,120]
[394025000,1763200276451,-500.0,0.00049589,120]
[394025001,1763200276460,-500.0,0.00049589,120]
[394025002,1763200276469,-500.0,0.00049589,120]
[394025003,1763200276478,-500.0,0.00049589,120]
[394025004,1763200276488,-500.0,0.00049589,120]
[394025005,1763200276497,-500.0,0.00049589,10]
[394025006,1763200276507,-2708.03,0.00049589,120]
[394025007,1763200276516,-500.0,0.00049589,120]
[394025008,1763200276526,-500.0,0.00049589,120]
[394025009,1763200276535,-500.0,0.00049589,120]
[394025010,1763200276545,-500.0,0.00049589,120]
[394025011,1763200276555,-500.0,0.00049589,120]
[394025012,1763200276565,-500.0,0.00049589,120]
[394025013,1763200276574,-500.0,0.00049589,120]
[394025014,1763200276584,-500.0,0.00049589,120]
[394025015,1763200276594,-500.0,0.00049589,120]
[394025016,1763200276603,-500.0,0.00049589,120]
[394025017,1763200276612,-500.0,0.00049589,120]
[394025018,1763200276622,-518.70114848,0.00049589,120]
[394025019,1763200276631,-500.0,0.00049589,120]
[394025020,1763200276641,-1700.39,0.00049589,120]
[394025021,1763200276650,-845.92,0.00049589,120]
[394025022,1763200276660,-500.0,0.00049589,120]
[394025023,1763200276670,-590.7,0.00049589,120]
[394025024,1763200276679,-500.0,0.00049589,120]
[394025025,1763200276688,-500.0,0.00049589,120]
[394025026,1763200276698,-500.0,0.00049589,120]
[394025027,1763200276707,-500.0,0.00049589,120]
[394025028,1763200276717,-500.0,0.00049589,7]
[394025029,1763200276727,-500.0,0.00049589,120]
[394025030,1763200276738,-500.0,0.00049589,120]
[394025031,1763200276749,-500.64313346,0.00049589,120]
[394025032,1763200276758,-505.79169932,0.00049589,120]
[394025033,1763200276767,-500.0,0.00049589,120]
[394025034,1763200276777,-500.0,0.00049589,120]
[394025035,1763200276786,-500.0,0.00049589,120]
[394025036,1763200276795,-500.0,0.00049589,120]
[394025037,1763200276804,-500.0,0.00049589,120]
[394025038,1763200276813,-500.0,0.00049589,120]
[394025039,1763200276823,-500.0,0.00049589,120]
[394025040,1763200276834,-500.0,0.00049589,120]
[394025041,1763200276844,-500.0,0.00049589,120]
[394025042,1763200276854,-500.0,0.00049589,120]
[394025043,1763200276864,-576.07,0.00049589,120]
[394025044,1763200276874,-500.0,0.00049589,120]
[394025045,1763200276884,-500.0,0.00049589,120]
[394025046,1763200276893,-500.0,0.00049589,120]
[394025047,1763200276902,-500.0,0.00049589,120]
[394025048,1763200276912,-500.0,0.00049589,120]
[394025049,1763200276921,-500.0,0.00049589,120]
[394025050,1763200276930,-500.0,0.00049589,120]
[394025051,1763200276939,-500.0,0.00049589,120]
[394025052,1763200276949,-500.0,0.00049589,120]
[394025053,1763200276959,-500.0,0.00049589,120]
[394025054,1763200276969,-500.0,0.00049589,120]
[394025055,1763200276978,-502.88775126,0.00049589,120]
[394025056,1763200276991,-500.0,0.00049589,120]
[394025057,1763200277002,-580.02,0.00049589,120]
[394025058,1763200277011,-500.0,0.00049589,120]
[394025059,1763200277020,-500.0,0.00049589,120]
[394025060,1763200277029,-500.0,0.00049589,2]
[394025061,1763200277039,-500.0,0.00049589,2]
[394025062,1763200277047,-1000.0,0.00049589,2]
[394025063,1763200277057,-221.6,0.00049589,120]
[394025064,1763200277066,-1000.0,0.00049589,2]
[394025065,1763200277075,-500.0,0.00049589,14]
[394025066,1763200277084,-500.0,0.00049589,120]
[394025067,1763200277094,-500.0,0.00049589,120]
[394025068,1763200277103,-812.44,0.00049589,2]
[394025069,1763200277113,-569.83377466,0.00049589,2]
[394025070,1763200277125,-557.41,0.00049589,120]
[394025071,1763200277135,-1000.0,0.00049589,30]
[394025072,1763200277145,-457.76,0.00049589,18]
[394025073,1763200277154,-158.78343214,0.00049589,30]
[394025074,1763200277163,-283.0,0.000497,30]
[394025075,1763200277172,-18995.42,0.000497,50]
[394025076,1763200277181,-330.9899197,0.00049781,30]
[394025077,1763200277191,-300.0,0.000498,120]
[394025078,1763200277203,-158.78343214,0.00049836,30]
[394025079,1763200277212,-500.0,0.00049863,120]
[394025080,1763200277221,-500.0,0.00049863,120]
[394025081,1763200277231,-687.74,0.00049863,120]
[394025082,1763200277243,-500.0,0.00049863,120]
[394025083,1763200277251,-500.0,0.00049863,120]
[394025084,1763200277260,-554.45,0.00049863,120]
[394025085,1763200277272,-500.0,0.00049863,120]
[394025086,1763200277281,-500.0,0.00049863,120]
[394025087,1763200277290,-500.0,0.00049863,120]
[394025088,1763200277299,-500.0,0.00049863,120]
[394025089,1763200277308,-500.0,0.00049863,120]
[394025090,1763200277318,-500.0,0.00049863,120]
[394025091,1763200277327,-501.67854895,0.00049863,120]
[394025092,1763200277337,-582.92,0.00049863,120]
[394025093,1763200277346,-500.0,0.00049863,120]
[394025094,1763200277355,-500.0,0.00049863,120]
[394025095,1763200277365,-504.78979213,0.00049863,120]
[394025096,1763200277376,-500.0,0.00049863,120]
[394025097,1763200277386,-500.0,0.00049863,120]
[394025098,1763200277396,-500.0,0.00049863,120]
[394025099,1763200277405,-790.87,0.00049863,120]
[394025100,1763200277416,-629.47,0.00049863,120]
[394025101,1763200277426,-500.0,0.00049863,120]
[394025102,1763200277436,-500.0,0.00049863,120]
[394025103,1763200277446,-500.0,0.00049863,120]
[394025104,1763200277455,-500.0,0.00049863,30]
[394025105,1763200277464,-500.0,0.00049863,120]
[394025106,1763200277473,-673.94,0.00049863,120]
[394025107,1763200277483,-500.0,0.00049863,120]
[394025108,1763200277493,-500.0,0.00049863,120]
[394025109,1763200277502,-540.27310125,0.00049863,120]
[394025110,1763200277511,-500.0,0.00049863,120]
[394025111,1763200277521,-500.0,0.00049863,120]
[394025112,1763200277530,-500.0,0.00049863,120]
[394025113,1763200277539,-758.17,0.00049863,120]
[394025114,1763200277549,-590.85,0.00049863,120]
[394025115,1763200277559,-500.0,0.00049863,120]
[394025116,1763200277568,-500.0,0.00049863,120]
[394025117,1763200277577,-500.0,0.00049863,120]
[394025118,1763200277587,-731.68,0.00049863,120]
[394025119,1763200277596,-500.0,0.00049863,120]
[394025120,1763200277605,-500.0,0.00049863,120]
[394025121,1763200277615,-571.3,0.00049863,120]
[394025122,1763200277625,-500.0,0.00049863,120]
[394025123,1763200277634,-500.0,0.00049863,120]
[394025124,1763200277643,-500.0,0.00049863,120]
[394025125,1763200277653,-500.0,0.00049863,120]
[394025126,1763200277663,-500.0,0.00049863,120]
[394025127,1763200277672,-517.5930769,0.00049863,120]
[394025128,1763200277682,-500.0,0.00049863,120]
[394025129,1763200277691,-1090.76,0.00049863,7]
[394025130,1763200277700,-500.0,0.00049863,120]
[394025131,1763200277709,-500.0,0.00049863,120]
[394025132,1763200277718,-500.0,0.00049863,120]
[394025133,1763200277727,-519.24205539,0.00049863,120]
[394025134,1763200277737,-500.0,0.00049863,120]
[394025135,1763200277746,-500.0,0.00049863,120]
[394025136,1763200277756,-500.0,0.00049863,120]
[394025137,1763200277765,-500.0,0.00049863,120]
[394025138,1763200277774,-500.0,0.00049863,120]
[394025139,1763200277783,-500.0,0.00049863,120]
[394025140,1763200277792,-3400.85,0.00049863,2]
[394025141,1763200277801,-517.3032493,0.00049863,120]
[394025142,1763200277811,-500.0,0.00049863,120]
[394025143,1763200277820,-500.0,0.00049863,120]
[394025144,1763200277830,-500.0,0.00049863,120]
[394025145,1763200277840,-500.0,0.00049863,120]
[394025146,1763200277849,-1174.97,0.00049863,120]
[394025147,1763200277860,-500.0,0.00049863,120]
[394025148,1763200277871,-500.0,0.00049863,120]
[394025149,1763200277881,-500.0,0.00049863,120]
[394025150,1763200277890,-500.0,0.00049863,120]
[394025151,1763200277898,-618.7,0.00049863,120]
[394025152,1763200277908,-500.0,0.00049863,120]
[394025153,1763200277916,-500.0,0.00049863,120]
[394025154,1763200277926,-630.51979609,0.00049863,120]
[394025155,1763200277934,-500.0,0.00049863,120]
[394025156,1763200277943,-500.0,0.00049863,120]
[394025157,1763200277952,-506.21,0.00049863,120]
[394025158,1763200277961,-500.0,0.00049863,120]
[394025159,1763200277970,-500.0,0.00049863,120]
[394025160,1763200277979,-504.56786259,0.00049863,120]
[394025161,1763200277989,-500.0,0.00049863,120]
[394025162,1763200277998,-500.0,0.00049863,120]
[394025163,1763200278007,-500.0,0.00049863,120]
[394025164,1763200278016,-536.43,0.00049863,120]
[394025165,1763200278025,-505.46,0.00049863,120]
[394025166,1763200278033,-500.0,0.00049863,120]
[394025167,1763200278042,-500.0,0.00049863,120]
[394025168,1763200278051,-500.0,0.00049863,120]
[394025169,1763200278060,-500.0,0.00049863,120]
[394025170,1763200278069,-566.44,0.00049863,120]
[394025171,1763200278078,-500.0,0.00049863,120]
[394025172,1763200278086,-500.0,0.00049863,120]
[394025173,1763200278095,-500.0,0.00049863,120]
[394025174,1763200278104,-829.99,0.00049863,120]
[394025175,1763200278113,-500.0,0.00049863,120]
[394025176,1763200278121,-500.0,0.00049863,120]
[394025177,1763200278130,-500.0,0.00049863,120]
[394025178,1763200278139,-500.0,0.00049863,120]
[394025179,1763200278148,-500.0,0.00049863,120]
[394025180,1763200278157,-500.0,0.00049863,120]
[394025181,1763200278165,-500.0,0.00049863,120]
[394025182,1763200278174,-500.0,0.00049863,120]
[394025183,1763200278183,-500.0,0.00049863,120]
[394025184,1763200278192,-500.0,0.00049863,120]
[394025185,1763200278206,-500.0,0.00049863,120]
[394025186,1763200278215,-500.0,0.00049863,120]
[394025187,1763200278224,-546.38,0.00049863,120]
[394025188,1763200278233,-500.0,0.00049863,120]
[394025189,1763200278243,-501.76490468,0.00049863,120]
[394025190,1763200278252,-785.26,0.00049863,120]
[394025191,1763200278261,-500.0,0.00049863,120]
[394025192,1763200278270,-500.0,0.00049863,120]
[394025193,1763200278280,-500.0,0.00049863,120]
[394025194,1763200278289,-500.0,0.00049863,120]
[394025195,1763200278298,-500.0,0.00049863,120]
[394025196,1763200278307,-500.0,0.00049863,120]
[394025197,1763200278316,-500.0,0.00049863,120]
[394025198,1763200278326,-500.0,0.00049863,60]
[394025199,1763200278335,-500.0,0.00049863,120]
[394025200,1763200278345,-500.0,0.00049863,120]
[394025201,1763200278354,-500.0,0.00049863,120]
[394025202,1763200278363,-500.0,0.00049863,120]
[394025203,1763200278372,-502.58602661,0.00049863,120]
[394025204,1763200278381,-500.0,0.00049863,120]
[394025205,1763200278390,-500.0,0.00049863,120]
[394025206,1763200278399,-500.0,0.00049863,120]
[394025207,1763200278409,-500.0,0.00049863,120]
[394025208,1763200278418,-501.89765361,0.00049863,120]
[394025209,1763200278428,-500.0,0.00049863,120]
[394025210,1763200278437,-500.0,0.00049863,120]
[394025211,1763200278446,-498.13623947,0.00049863,120]
[394025212,1763200278455,-500.0,0.00049863,120]
[394025213,1763200278464,-502.05287096,0.00049863,120]
[394025214,1763200278473,-511.2404068,0.00049863,120]
[394025215,1763200278483,-500.0,0.00049863,120]
[394025216,1763200278494,-500.0,0.00049863,120]
[394025217,1763200278503,-500.0,0.00049863,120]
[394025218,1763200278513,-500.0,0.00049863,120]
[394025219,1763200278524,-587.04740187,0.00049863,120]
[394025220,1763200278533,-501.62771231,0.00049863,120]
[394025221,1763200278543,-226.75828408,0.00049863,120]
[394025222,1763200278553,-504.33640326,0.00049863,120]
[394025223,1763200278562,-500.0,0.00049863,120]
[394025224,1763200278572,-521.84966642,0.00049863,120]
[394025225,1763200278581,-500.0,0.00049863,120]
[394025226,1763200278590,-500.0,0.00049863,120]
[394025227,1763200278600,-500.0,0.00049863,120]
[394025228,1763200278609,-500.0,0.00049863,120]
[394025229,1763200278618,-503.81136061,0.00049863,120]
[394025230,1763200278627,-500.0,0.00049863,120]
[394025231,1763200278637,-477.01848926,0.00049863,120]
[394025232,1763200278646,-500.0,0.00049863,120]
[394025233,1763200278655,-500.0,0.00049863,120]
[394025234,1763200278664,-500.0,0.00049863,7]
[394025235,1763200278673,-500.0,0.00049863,120]
[394025236,1763200278683,-421.43378424,0.00049863,120]
[394025237,1763200278692,-614.0118973,0.00049863,120]
[394025238,1763200278701,-500.0,0.00049863,120]
[394025239,1763200278711,-500.0,0.00049863,120]
[394025240,1763200278721,-500.0,0.00049863,120]
[394025241,1763200278731,-500.0,0.00049863,120]
[394025242,1763200278742,-500.0,0.00049863,120]
[394025243,1763200278752,-500.0,0.00049863,120]
[394025244,1763200278762,-528.37079962,0.00049863,120]
[394025245,1763200278771,-203.34524369,0.00049863,120]
[394025246,1763200278781,-500.0,0.00049863,120]
[394025247,1763200278790,-500.0,0.00049863,120]
[394025248,1763200278799,-500.0,0.00049863,120]
[394025249,1763200278808,-500.0,0.00049863,120]
[394025250,1763200278817,-500.0,0.00049863,120]
[394025251,1763200278826,-500.0,0.00049863,120]
[394025252,1763200278835,-519.15315981,0.00049863,120]
[394025253,1763200278845,-1165.61,0.00049863,120]
[394025254,1763200278854,-500.0,0.00049863,120]
[394025255,1763200278862,-500.0,0.00049863,120]
[394025256,1763200278871,-500.0,0.00049863,120]
[394025257,1763200278880,-500.0,0.00049863,120]
[394025258,1763200278890,-629.76,0.00049863,120]
[394025259,1763200278899,-183.01505123,0.00049863,100]
[394025260,1763200278908,-501.30994747,0.00049863,120]
[394025261,1763200278917,-500.0,0.00049863,120]
[394025262,1763200278928,-500.0,0.00049863,120]
[394025263,1763200278937,-503.38757461,0.00049863,120]
[394025264,1763200278946,-251.81248116,0.00049863,120]
[394025265,1763200278955,-511.51,0.00049863,2]
[394025266,1763200278963,-500.0,0.00049863,120]
[394025267,1763200278972,-500.0,0.00049863,120]
[394025268,1763200278982,-500.0,0.00049863,120]
[394025269,1763200278990,-529.53919016,0.00049863,120]
[394025270,1763200278999,-500.0,0.00049863,120]
[394025271,1763200279009,-500.0,0.00049863,120]
[394025272,1763200279018,-500.0,0.00049863,120]
[394025273,1763200279027,-500.0,0.00049863,120]
[394025274,1763200279036,-500.0,0.00049863,120]
[394025275,1763200279046,-500.0,0.00049863,120]
[394025276,1763200279055,-500.0,0.00049863,120]
[394025277,1763200279064,-500.0,0.00049863,120]
[394025278,1763200279073,-500.0,0.00049863,120]
[394025279,1763200279082,-500.0,0.00049863,120]
[394025280,1763200279091,-515.28,0.00049863,120]
[394025281,1763200279100,-500.0,0.00049863,120]
[394025282,1763200279109,-500.0,0.00049863,120]
[394025283,1763200279118,-500.0,0.00049863,120]
[394025284,1763200279127,-500.0,0.00049863,120]
[394025285,1763200279136,-500.0,0.00049863,120]
[394025286,1763200279145,-500.0,0.00049863,120]
[394025287,1763200279154,-500.0,0.00049863,120]
[394025288,1763200279163,-518.00016815,0.00049863,120]
[394025289,1763200279171,-500.0,0.00049863,2]
[394025290,1763200279180,-500.0,0.00049863,120]
[394025291,1763200279189,-500.0,0.00049863,120]
[394025292,1763200279203,-503.43769263,0.00049863,120]
[394025293,1763200279212,-500.0,0.00049863,120]
[394025294,1763200279221,-958.77,0.00049863,120]
[394025295,1763200279230,-500.0,0.00049863,120]
[394025296,1763200279242,-500.0,0.00049863,120]
[394025297,1763200279251,-502.4010655,0.00049863,120]
[394025298,1763200279260,-512.50811385,0.00049863,120]
[394025299,1763200279269,-500.0,0.00049863,120]
[394025300,1763200279280,-500.0,0.00049863,120]
[394025301,1763200279290,-500.0,0.00049863,120]
[394025302,1763200279298,-500.0,0.00049863,120]
[394025303,1763200279307,-500.0,0.00049863,120]
[394025304,1763200279316,-500.0,0.00049863,120]
[394025305,1763200279325,-500.0,0.00049863,120]
[394025306,1763200279334,-500.0,0.00049863,120]
[394025307,1763200279343,-500.0,0.00049863,120]
[394025308,1763200279352,-500.0,0.00049863,120]
[394025309,1763200279360,-502.56964964,0.00049863,120]
[394025310,1763200279370,-501.45773799,0.00049863,120]
[394025311,1763200279378,-500.0,0.00049863,120]
[394025312,1763200279387,-500.0,0.00049863,120]
[394025313,1763200279396,-500.0,0.00049863,120]